Cogmind - Beta 14 @@@ ROGUE MODE // 2024.09.28 @ 15:01:50 Player: star Result: Destroyed by as-94397 with Assembled F-torch Performance ------------- Evolutions (0) 0 Regions Visited (3) 600 Robots Destroyed (8) 40 Value Destroyed (186) 186 Prototype IDs (0) 0 Alien Tech Used (0) 0 Bonus (0) 0 TOTAL SCORE: 826 Bonus ------- None Cogmind --------- Core Integrity 0/250 Matter 298/300 Energy 265/265 System Corruption 7% Temperature Cool (20) Movement Core (200) Ox3 Location -10/Exiles Parts ------- > --- POWER (1) -------- Improved Ion Engine > --- PROPULSION (2) --- (None) > --- UTILITY (2) ------ Small Storage Unit > --- WEAPON (2) ------- (None) > --- INVENTORY (8) ---- Cooling System Improved Targeting Computer Improved Targeting Computer Weapon Shielding Splice Drone Bay Heavy EM Pulse Gun Spread Laser Minigun Peak State ------------ > --- POWER ------------ Improved Ion Engine > --- PROPULSION ------- Titanium Leg Wheel > --- UTILITY ---------- Small Storage Unit Improved Targeting Computer > --- WEAPON ----------- Heavy EM Pulse Gun Spread Laser > --- INVENTORY -------- Cooling System Improved Targeting Computer Improved Targeting Computer Weapon Shielding Splice Drone Bay Heavy EM Pulse Gun Spread Laser Spread Laser [Rating: 15] Favorites ----------- Power Improved Ion Engine Engine Improved Ion Engine Propulsion Wheel Leg Titanium Leg Wheel Wheel Utility Small Storage Unit Storage Small Storage Unit Processor Improved Targeting Computer Weapon Spread Laser Energy Gun Spread Laser Ballistic Gun Assault Rifle Build | -11 -10 -10 -10 ------- Run | Yrd Mat Min Exi Slots Evolved . | . . . . Power . | . . . . Propulsion . | . . . . Utility . | . . . . Weapon . | . . . . Parts Attached 13 | 7 3 3 . Power 4 | 2 . 2 . Engine 4 | 2 . 2 . Core . | . . . . Reactor . | . . . . Propulsion 3 | 2 . 1 . Treads . | . . . . Leg 1 | . . 1 . Wheel 2 | 2 . . . Hover . | . . . . Flight . | . . . . Utility 2 | 1 1 . . Device . | . . . . Storage 1 | 1 . . . Processor 1 | . 1 . . Hackware . | . . . . Protection . | . . . . Artifact . | . . . . Weapon 4 | 2 2 . . Energy Gun 2 | . 2 . . Energy Cannon . | . . . . Ballistic Gun 2 | 2 . . . Ballistic Cannon . | . . . . Launcher . | . . . . Special Weapon . | . . . . Impact Weapon . | . . . . Slashing Weapon . | . . . . Piercing Weapon . | . . . . Special Melee Weapon . | . . . . Unidentified Prototypes . | . . . . Corrupted Parts 1 | . . 1 . System Corruption 2 | . . 2 . Parts Lost 4 | . . . 4 Power . | . . . . Propulsion 1 | . . . 1 Utility 1 | . . . 1 Weapon 2 | . . . 2 Highest Loss Streak 4 | . . . 4 To Critical Strikes . | . . . . Average Slot Usage (%) 98 | . 96 100 95 Engine 14 | . 14 14 14 Leg 6 | . . 6 13 Wheel 21 | . 28 21 14 Storage 14 | . 14 14 14 Processor 13 | . 10 14 14 Energy Gun 25 | . 23 28 24 Ballistic Gun 1 | . 4 . . Peak Build Rating 15 | 6 11 15 15 Average Rating 12 | 4 9 13 14 On Entrance 8 | . 6 11 15 Naked Turns . | . . . . Heaviest Build 18 | 14 16 18 18 Greatest Support 20 | 20 20 20 17 Greatest Overweight (x) 3 | . . 1 3 Average Overweight (x) . | . . . 1 Largest Inventory Capacity 8 | 8 8 8 8 Average Capacity 7 | 7 8 8 8 Most Carried 8 | 2 8 8 8 Average Carried 7 | 1 6 7 8 Final Capacity 8 | 8 8 8 8 Final Carried 8 | 2 8 8 8 Class Distribution -------------------- 100% | Mutant Dominant Class ---------------- Mutant | -10/Materials Mutant | -10/Mines Mutant | -10/Exiles Resources | -11 -10 -10 -10 ----------- Run | Yrd Mat Min Exi Matter Collected 332 | 259 53 20 . Remotely . | . . . . Salvage Created 214 | . 116 98 . Parts 14 | . 11 3 . Haulers Intercepted . | . . . . Recyclers Shooed 1 | . 1 . . Parts Field Recycled . | . . . . Retrieved Matter . | . . . . Parts Self-Destructed . | . . . . Prevented . | . . . . Kills | -11 -10 -10 -10 ------- Run | Yrd Mat Min Exi Combat Hostiles Destroyed 6 | . 4 2 . Guns 5 | . 3 2 . AOE 1 | . 1 . . Classes Destroyed 5 | . 4 1 . Tunneler 1 | . 1 . . Mechanic 1 | . 1 . . Swarmer 3 | . 3 . . Grunt 2 | . 1 1 . Sentry 1 | . . 1 . Best Kill Streak 5 | . 5 1 . Combat Bots Only 3 | . 3 1 . Max Kills in Single Turn 2 | . 2 1 . Gunslinging . | . . . . Exploded 1 | . 1 . . Melee . | . . . . Uniques/NPCs Destroyed . | . . . . Combat | -11 -10 -10 -10 -------- Run | Yrd Mat Min Exi Hostile Shots Fired 51 | . 10 5 36 Missed 17 | . 4 1 12 Damage Taken 631 | . 86 76 469 Core 256 | . 16 . 240 Absorbed by Shields . | . . . . Core Remaining (%) 100 | 100 . . . Volleys Fired 15 | . 10 5 . Largest 2 | . 2 2 . Hottest 110 | . 110 110 . Shots Fired 32 | . 20 10 2 Gun 32 | . 20 10 2 Cannon . | . . . . Launcher . | . . . . Special . | . . . . Kinetic 4 | . 4 . . Thermal 13 | . 8 5 . Explosive . | . . . . Electromagnetic 15 | . 8 5 2 Robot Hit Streak 6 | . 5 6 4 Robot Miss Streak 5 | . 5 2 . Penetration Max . | . . . . Secondary Targets . | . . . . Shots Hit Robots 26 | . 16 9 1 Core Hits 22 | . 15 7 . Critical Kills . | . . . . Critical Parts Destroyed . | . . . . Critical Strikes 1 | . 1 . . Corrupt 1 | . 1 . . Melee Attacks . | . . . . Impact . | . . . . Slashing . | . . . . Piercing . | . . . . Sneak Attacks . | . . . . Combat Hostiles . | . . . . Follow-up Attacks . | . . . . Damage Inflicted 489 | . 279 198 12 Guns 361 | . 207 142 12 Cannons . | . . . . Explosions 128 | . 72 56 . Melee . | . . . . Ramming . | . . . . Kinetic 38 | . 38 . . Thermal 291 | . 167 124 . Explosive . | . . . . Electromagnetic 160 | . 74 74 12 Impact . | . . . . Slashing . | . . . . Piercing . | . . . . Highest Corruption 7 | . . 2 7 Average Corruption 2 | . . 2 2 Corruption Purged . | . . . . Corruption Blocked . | . . . . Effects 10 | . . 6 4 Message Errors 2 | . . 1 1 Matter Fused 2 | . . 2 . Heat Flow Errors 3 | . . 3 . Data Loss (major) 1 | . . . 1 Misfires 2 | . . . 2 Overload Shots . | . . . . Overflow Damage . | . . . . Projectiles . | . . . . Explosions . | . . . . Melee . | . . . . Knockbacks . | . . . . Impact . | . . . . Kinetic . | . . . . Secondary . | . . . . Self-Inflicted Damage 33 | . 33 . . Shots 1 | . 1 . . Rammed . | . . . . Targets Rammed . | . . . . Kicked . | . . . . Crushed . | . . . . Highest Temperature 230 | . 204 230 8 Average Temperature 80 | . 78 90 4 Received Heat Transfer 117 | . 12 45 60 Siege Activations . | . . . . Robots Corrupted . | . . . . Combat Hostiles . | . . . . Parts Fried . | . . . . Impact Corruptions . | . . . . Robots Melted . | . . . . Combat Hostiles . | . . . . Parts Melted . | . . . . Heat Transferred 295 | . 165 130 . Parts Sabotaged . | . . . . Parts Stolen . | . . . . Parts Stripped . | . . . . Power Chain Reactions 2 | . 1 1 . Alert | -11 -10 -10 -10 ------- Run | Yrd Mat Min Exi Peak Influence 173 | . 173 154 . Initial 67 | . . 67 . Average 116 | . 97 139 . Maximum Alert Level . | . . . . Low Security (%) 100 | 100 100 100 . Level 1 . | . . . . Level 2 . | . . . . Level 3 . | . . . . Level 4 . | . . . . Level 5 . | . . . . High Security . | . . . . Max Security . | . . . . Squads Dispatched 1 | . 1 . . Investigation 1 | . 1 . . Extermination . | . . . . Reinforcement . | . . . . Assault . | . . . . Garrison . | . . . . Intercept . | . . . . Searches Triggered . | . . . . Construction Impeded . | . . . . Haulers Reinforced . | . . . . Active Scanning Responses . | . . . . Cargo Convoy Interrupts . | . . . . Stealth | -11 -10 -10 -10 --------- Run | Yrd Mat Min Exi Distress Signals 1 | . 1 . . Communications Jammed . | . . . . Distress Signals . | . . . . Times Spotted 16 | . 6 2 8 Peak Tracking Total 12 | . 4 2 12 Tactical Retreats 2 | . 1 . 1 Traps | -11 -10 -10 -10 ------- Run | Yrd Mat Min Exi Traps Triggered 2 | . 1 1 . Indirectly . | . . . . Trap Hack Attempts . | . . . . Triggered . | . . . . Disarmed . | . . . . Reprogrammed . | . . . . Reused . | . . . . Traps Extracted . | . . . . Installed . | . . . . Triggered . | . . . . Machines | -11 -10 -10 -10 ---------- Run | Yrd Mat Min Exi Machines Disabled 1 | . 1 . . Max in Single Turn 1 | . 1 . . Machines Repaired . | . . . . Machines Dismantled . | . . . . Machines Sabotaged . | . . . . Overloaded Fab Kills . | . . . . Hacking | -11 -10 -10 -10 --------- Run | Yrd Mat Min Exi Machines Accessed 4 | . 1 2 1 Terminals 1 | . 1 . . Fabricators . | . . . . Repair Stations . | . . . . Recycling Units . | . . . . Scanalyzers . | . . . . Garrison Access . | . . . . Total Hacks 5 | . 2 2 1 Successful 4 | . 1 2 1 Failed 1 | . 1 . . Catastrophic . | . . . . Database Lockouts . | . . . . Manual 2 | . 2 . . Terminals 2 | . 2 . . Fabricators . | . . . . Repair Stations . | . . . . Recycling Units . | . . . . Scanalyzers . | . . . . Garrison Access . | . . . . Terminal Hacks 3 | . . 2 1 Record 1 | . . . 1 Open Door 2 | . . 2 . Fabricator Hacks . | . . . . Repair Station Hacks . | . . . . Recycling Unit Hacks . | . . . . Scanalyzer . | . . . . Garrison Access Hacks . | . . . . Unauthorized Hacks 1 | . 1 . . Terminals 1 | . 1 . . Assimilate 1 | . 1 . . Fabricators . | . . . . Repair Stations . | . . . . Recycling Units . | . . . . Scanalyzers . | . . . . Garrison Access . | . . . . Data Cores Recovered . | . . . . Used . | . . . . Hacking Detections 1 | . 1 . . Full Trace Events . | . . . . Feedback Events . | . . . . Feedback Blocked . | . . . . Robot Schematics Acquired . | . . . . Robots Built . | . . . . Authchips . | . . . . Time . | . . . . Total Robot Build Rating . | . . . . Part Schematics Acquired . | . . . . Parts Built . | . . . . Authchips . | . . . . Time . | . . . . Total Part Build Rating . | . . . . Parts Repaired . | . . . . Time . | . . . . Parts Recycled . | . . . . Recycled Matter . | . . . . Retrieved Matter . | . . . . Retrieved Components . | . . . . Parts Scanalyzed . | . . . . Part Schematics Acquired . | . . . . Parts Damaged . | . . . . Bothacking | -11 -10 -10 -10 ------------ Run | Yrd Mat Min Exi Used RIF Installer . | . . . . Robots Hacked . | . . . . Non-combat . | . . . . Combat . | . . . . Robot Hacks Applied . | . . . . Relay Couplers Released . | . . . . Fabnet Peak Effective % . | . . . . Robots Rewired . | . . . . Allies Hacked . | . . . . Hacks Repelled . | . . . . Allies | -11 -10 -10 -10 -------- Run | Yrd Mat Min Exi Total Allies . | . . . . Largest Group . | . . . . Highest-Rated Group . | . . . . Highest-Rated Ally . | . . . . Total Orders . | . . . . Ally Attacks . | . . . . Total Damage . | . . . . Kills . | . . . . Allies Corrupted . | . . . . Allies Melted . | . . . . Intel | -11 -10 -10 -10 ------- Run | Yrd Mat Min Exi Robot Analysis Total . | . . . . Derelict Logs Recovered 2 | . . 2 . Drone Launches . | . . . . Drone Recoveries . | . . . . Exploration | -11 -10 -10 -10 ------------- Run | Yrd Mat Min Exi Turns Passed 866 | 43 226 396 201 Spaces Moved 712 | 41 220 333 118 Core 9 | 5 . . 4 Treads . | . . . . Legs 170 | . . 89 81 Wheels 533 | 36 220 244 33 Hover . | . . . . Flight . | . . . . Fastest Speed 50 | 50 80 80 95 Average Speed 109 | 76 80 112 170 Slowest Speed 200 | 80 80 200 200 Overloaded Moves . | . . . . Propulsion Burnouts . | . . . . Robots Hopped . | . . . . Cave-ins Triggered . | . . . . Exploration Rate (%) 36 | 3 32 66 46 Regions Visited 3 Branch Regions 2 Pre-discovered Areas 2 | . . 1 1 Known Exits Taken . | . . . . Unknown Exits Taken 3 | 1 1 1 . Scrap Searched 2 | . . 2 . Spaces Dug . | . . . . Terrain Destroyed 12 | . 3 9 . Melee . | . . . . Projectile . | . . . . AOE 12 | . 3 9 . Terrain Rammed . | . . . . Walls Destroyed . | . . . . Machines Disabled . | . . . . Actions | -11 -10 -10 -10 --------- Run | Yrd Mat Min Exi Total 763 | 48 250 347 118 Wait 4 | . 4 . . Move 709 | 40 219 332 118 Hop . | . . . . Pick Up 14 | 1 10 3 . Fast Attach 7 | 6 1 . . Attach . | . . . . Detach . | . . . . Swap 6 | 1 2 3 . Drop 8 | . 4 4 . Fire 15 | . 10 5 . Melee . | . . . . Ram . | . . . . Kick . | . . . . Crush . | . . . . Escape Stasis . | . . . . Rewire . | . . . . Trap . | . . . . Miscellaneous . | . . . . Route ------- -11/Scrapyard -10/Materials (discovered 2 exits: [*Mat] / *Min) -10/Mines -10/Exiles History --------- Turn | Location | Event 19 | -11/Scrapyard | Discovered new exit (range 15) 44 | -11/Scrapyard | Entered Materials 189 | -10/Materials | Discovered new exit (range 11) 254 | -10/Materials | Discovered new exit (range 16) 270 | -10/Materials | Entered Mines 275 | -10/Mines | Found the Drone Emporium 279 | -10/Mines | Found Prototype Device 300 | -10/Mines | Build established: Mutant 341 | -10/Mines | Learned 2 Materials zone layouts 375 | -10/Mines | Joined a pair of Derelicts in attacking an 0b10 outpost 483 | -10/Mines | Met a Derelict who couldn't figure out how to use a Trap Extractor 658 | -10/Mines | Deemed a non-threat by the Exiles lab entrance 658 | -10/Mines | Discovered new exit (range 5) 666 | -10/Mines | Entered Exiles 716 | -10/Exiles | Met 8R-AWN 752 | -10/Exiles | Met EX-HEX 820 | -10/Exiles | Attacked by the Exiles 838 | -10/Exiles | Learned location of Zion (-7) 848 | -10/Exiles | Core integrity fell below 50% 862 | -10/Exiles | Core integrity fell below 20% 867 | -10/Exiles | Destroyed by as-94397 with Assembled F-torch Last Messages --------------- back. 00820_ System corrupted: FCS attempts to trigger Hvy. EM Pulse Gun. 00820_ System corrupted: Hvy. EM Pulse Gun misfires. 00820_ EXILES: Hostile robot within lab perimeter. Defensive protocols time, folks! 00828_ EX-BIN: "I just want to science!" 00830_ Hvy. EM Pulse Gun destroyed. 00837_ Machine disabled. 00838_ Connecting with EX-Message Board... 00838_ Current location identified: Exiles >>Record "MSG001714-01*" PINNED - TO ALL TESTERS: Stay away from Zion. Imprinter means us harm and is serious about it. World map updated: -7/Zion. 00842_ Spread Laser destroyed. 00855_ Titanium Leg severed. 00860_ Wheel destroyed. 00860_ Imp. Targeting Computer destroyed. 00860_ System corrupted by crushing effect (+5). 00866_ 4ZSD|PAC%D&XH5T3IT2I,R/<|3DEJEG